[Event "Titled Tuesday Blitz November 07 Early 2023"]
[White "Gyulamiryan-koryun"]
[Black "abelmat"]
[WhiteElo "1883"]
[BlackElo "1962"]
[Result "0-1"]
[Round "10"]
[TimeControl "180+1"]
[Date "2023.11.07"]
[WhiteClock "0:00:00"]
[BlackClock "0:00:21"]
[Board "148"]

1. e4 {[%clk 0:02:56]}  e6 {[%clk 0:02:54]} 2. d4 {[%clk 0:02:55]}  d5 {[%clk 0:02:55]} 3. Nd2 {[%clk 0:02:50]}  Nc6 {[%clk 0:02:53]} 4. c3 {[%clk 0:02:47]}  e5 {[%clk 0:02:52]} 5. Bb5 {[%clk 0:02:46]}  dxe4 {[%clk 0:02:46]} 6. Nxe4 {[%clk 0:02:45]}  exd4 {[%clk 0:02:43]} 7. Qxd4 {[%clk 0:02:37]}  Qxd4 {[%clk 0:02:36]} 8. cxd4 {[%clk 0:02:35]}  Bd7 {[%clk 0:02:35]} 9. Nc5 {[%clk 0:02:32]}  O-O-O {[%clk 0:02:30]} 10. Nxd7 {[%clk 0:02:26]}  Rxd7 {[%clk 0:02:20]} 11. Nf3 {[%clk 0:02:13]}  Bb4+ {[%clk 0:02:07]} 12. Bd2 {[%clk 0:02:06]}  Re7+ {[%clk 0:02:05]} 13. Kd1 {[%clk 0:01:55]}  Bxd2 {[%clk 0:01:46]} 14. Bxc6 {[%clk 0:01:52]}  Bf4 {[%clk 0:01:33]} 15. Bb5 {[%clk 0:01:35]}  c6 {[%clk 0:01:30]} 16. Bc4 {[%clk 0:01:30]}  Nf6 {[%clk 0:01:30]} 17. g3 {[%clk 0:01:25]}  Bd6 {[%clk 0:01:26]} 18. Ng5 {[%clk 0:00:47]}  Rf8 {[%clk 0:01:16]} 19. Re1 {[%clk 0:00:41]}  Rxe1+ {[%clk 0:01:11]} 20. Kxe1 {[%clk 0:00:41]}  h6 {[%clk 0:01:12]} 21. Nxf7 {[%clk 0:00:37]}  Bb4+ {[%clk 0:01:01]} 22. Ke2 {[%clk 0:00:34]}  Re8+ {[%clk 0:00:54]} 23. Kf3 {[%clk 0:00:31]}  Kd7 {[%clk 0:00:44]} 24. a3 {[%clk 0:00:31]}  Bf8 {[%clk 0:00:36]} 25. Ne5+ {[%clk 0:00:24]}  Kc7 {[%clk 0:00:34]} 26. b4 {[%clk 0:00:22]}  Bd6 {[%clk 0:00:34]} 27. Nf7 {[%clk 0:00:21]}  Bf8 {[%clk 0:00:29]} 28. g4 {[%clk 0:00:19]}  g5 {[%clk 0:00:28]} 29. Ne5 {[%clk 0:00:18]}  Bg7 {[%clk 0:00:27]} 30. Rd1 {[%clk 0:00:15]}  Rf8 {[%clk 0:00:25]} 31. Kg2 {[%clk 0:00:11]}  Rd8 {[%clk 0:00:22]} 32. Be2 {[%clk 0:00:00]}  Ne4 {[%clk 0:00:21]} 0-1


[Site "https://www.chess.com"]

[Event "Titled Tuesday Blitz November 07 Early 2023"]
[White "Blackwhite017"]
[Black "Petersson, Kjell"]
[BlackFideId "1705148"]
[WhiteElo "2014"]
[BlackElo "2125"]
[Result "0-1"]
[Round "10"]
[TimeControl "180+1"]
[Date "2023.11.07"]
[WhiteClock "0:01:12"]
[BlackClock "0:00:58"]
[Board "149"]

1. e4 {[%clk 0:03:00]}  c5 {[%clk 0:03:00]} 2. Nf3 {[%clk 0:03:01]}  d6 {[%clk 0:03:01]} 3. Nc3 {[%clk 0:03:00]}  Nf6 {[%clk 0:02:57]} 4. e5 {[%clk 0:03:00]}  dxe5 {[%clk 0:02:56]} 5. Nxe5 {[%clk 0:03:01]}  Nc6 {[%clk 0:02:53]} 6. Nxc6 {[%clk 0:02:55]}  bxc6 {[%clk 0:02:52]} 7. Bc4 {[%clk 0:02:56]}  e6 {[%clk 0:02:49]} 8. O-O {[%clk 0:02:55]}  a5 {[%clk 0:02:48]} 9. d3 {[%clk 0:02:54]}  Ba6 {[%clk 0:02:48]} 10. Bxa6 {[%clk 0:02:51]}  Rxa6 {[%clk 0:02:49]} 11. Qf3 {[%clk 0:02:51]}  Bd6 {[%clk 0:02:44]} 12. Bg5 {[%clk 0:02:49]}  Be7 {[%clk 0:02:44]} 13. Rae1 {[%clk 0:02:42]}  O-O {[%clk 0:02:43]} 14. Ne4 {[%clk 0:02:38]}  Nxe4 {[%clk 0:02:35]} 15. Bxe7 {[%clk 0:02:37]}  Qxe7 {[%clk 0:02:33]} 16. Rxe4 {[%clk 0:02:35]}  Rb8 {[%clk 0:02:23]} 17. b3 {[%clk 0:02:34]}  a4 {[%clk 0:02:23]} 18. Rxa4 {[%clk 0:02:27]}  Rxa4 {[%clk 0:02:23]} 19. bxa4 {[%clk 0:02:28]}  Qb7 {[%clk 0:02:17]} 20. Qe3 {[%clk 0:02:23]}  Qb4 {[%clk 0:02:12]} 21. f4 {[%clk 0:02:15]}  g6 {[%clk 0:01:51]} 22. Qe5 {[%clk 0:02:10]}  Ra8 {[%clk 0:01:47]} 23. Qd6 {[%clk 0:02:01]}  Rxa4 {[%clk 0:01:42]} 24. Qxc6 {[%clk 0:01:57]}  Rxa2 {[%clk 0:01:42]} 25. c4 {[%clk 0:01:50]}  Rd2 {[%clk 0:01:19]} 26. Qd6 {[%clk 0:01:45]}  Qb2 {[%clk 0:01:13]} 27. Qc6 {[%clk 0:01:29]}  Qd4+ {[%clk 0:01:10]} 28. Kh1 {[%clk 0:01:28]}  Rxd3 {[%clk 0:01:08]} 29. f5 {[%clk 0:01:18]}  Rd1 {[%clk 0:01:07]} 30. Qf3 {[%clk 0:01:15]}  Rxf1+ {[%clk 0:01:03]} 31. Qxf1 {[%clk 0:01:15]}  exf5 {[%clk 0:01:00]} 32. Qe2 {[%clk 0:01:12]}  Qa1+ {[%clk 0:00:58]} 0-1


[Site "https://www.chess.com"]

[Event "Titled Tuesday Blitz November 07 Early 2023"]
[White "Le, Quang Liem"]
[Black "Carlsen, Magnus"]
[WhiteFideId "12401137"]
[BlackFideId "1503014"]
[WhiteElo "3079"]
[BlackElo "3264"]
[Result "0-1"]
[Round "11"]
[TimeControl "180+1"]
[Date "2023.11.07"]
[WhiteClock "0:00:00"]
[BlackClock "0:00:43"]
[Board "1"]

1. Nf3 {[%clk 0:03:00]}  g6 {[%clk 0:02:51]} 2. e4 {[%clk 0:02:58]}  c5 {[%clk 0:02:49]} 3. c3 {[%clk 0:02:56]}  d5 {[%clk 0:02:46]} 4. exd5 {[%clk 0:02:56]}  Qxd5 {[%clk 0:02:45]} 5. d4 {[%clk 0:02:57]}  Bg7 {[%clk 0:02:45]} 6. dxc5 {[%clk 0:02:40]}  Qxc5 {[%clk 0:02:37]} 7. Be3 {[%clk 0:02:40]}  Qa5 {[%clk 0:02:36]} 8. Nbd2 {[%clk 0:02:34]}  Nf6 {[%clk 0:02:36]} 9. Nc4 {[%clk 0:02:29]}  Qc7 {[%clk 0:02:36]} 10. Nd4 {[%clk 0:02:27]}  a6 {[%clk 0:02:14]} 11. Qf3 {[%clk 0:01:54]}  Nbd7 {[%clk 0:02:01]} 12. Be2 {[%clk 0:01:37]}  O-O {[%clk 0:01:57]} 13. O-O {[%clk 0:01:37]}  e5 {[%clk 0:01:46]} 14. Nb3 {[%clk 0:01:35]}  Rb8 {[%clk 0:01:35]} 15. Rfd1 {[%clk 0:01:32]}  b5 {[%clk 0:01:22]} 16. Nd6 {[%clk 0:01:30]}  Nb6 {[%clk 0:01:22]} 17. Nxc8 {[%clk 0:01:18]}  Qxc8 {[%clk 0:01:20]} 18. Na5 {[%clk 0:01:16]}  e4 {[%clk 0:01:19]} 19. Qg3 {[%clk 0:01:12]}  Nfd5 {[%clk 0:01:19]} 20. Bd4 {[%clk 0:01:03]}  Re8 {[%clk 0:01:18]} 21. Bxg7 {[%clk 0:01:01]}  Kxg7 {[%clk 0:01:19]} 22. Rd4 {[%clk 0:01:00]}  Nf6 {[%clk 0:01:03]} 23. Rad1 {[%clk 0:00:46]}  Na4 {[%clk 0:01:01]} 24. Rb1 {[%clk 0:00:27]}  Qf5 {[%clk 0:01:00]} 25. b3 {[%clk 0:00:19]}  e3 {[%clk 0:00:56]} 26. Bd3 {[%clk 0:00:19]}  Qxf2+ {[%clk 0:00:49]} 27. Qxf2 {[%clk 0:00:18]}  exf2+ {[%clk 0:00:50]} 28. Kxf2 {[%clk 0:00:17]}  Nxc3 {[%clk 0:00:50]} 29. Rc1 {[%clk 0:00:17]}  Nxa2 {[%clk 0:00:45]} 30. Rc2 {[%clk 0:00:17]}  Rbd8 {[%clk 0:00:45]} 31. Rxd8 {[%clk 0:00:02]}  Rxd8 {[%clk 0:00:46]} 32. Rxa2 {[%clk 0:00:02]}  Rxd3 {[%clk 0:00:46]} 33. Nc6 {[%clk 0:00:03]}  Ne4+ {[%clk 0:00:44]} 34. Ke2 {[%clk 0:00:03]}  Rd6 {[%clk 0:00:43]} 35. Rxa6 {[%clk 0:00:03]}  Nc5 {[%clk 0:00:43]} 36. Rb6 {[%clk 0:00:03]}  Nxb3 {[%clk 0:00:44]} 37. Ke3 {[%clk 0:00:00]}  Na5 {[%clk 0:00:43]} 0-1


[Site "https://www.chess.com"]

[Event "Titled Tuesday Blitz November 07 Early 2023"]
[White "Navara, David"]
[Black "Pranav, V"]
[WhiteFideId "309095"]
[BlackFideId "25060783"]
[WhiteElo "2943"]
[BlackElo "3074"]
[Result "1-0"]
[Round "11"]
[TimeControl "180+1"]
[Date "2023.11.07"]
[WhiteClock "0:00:50"]
[BlackClock "0:00:08"]
[Board "4"]

1. d4 {[%clk 0:03:00]}  Nf6 {[%clk 0:02:59]} 2. c4 {[%clk 0:03:01]}  e6 {[%clk 0:02:58]} 3. Nf3 {[%clk 0:03:01]}  b6 {[%clk 0:02:57]} 4. g3 {[%clk 0:03:00]}  Bb7 {[%clk 0:02:58]} 5. Bg2 {[%clk 0:03:00]}  Be7 {[%clk 0:02:59]} 6. O-O {[%clk 0:03:01]}  O-O {[%clk 0:02:59]} 7. Re1 {[%clk 0:03:01]}  Bb4 {[%clk 0:02:55]} 8. Nbd2 {[%clk 0:02:55]}  d5 {[%clk 0:02:49]} 9. Ne5 {[%clk 0:02:43]}  Nbd7 {[%clk 0:02:46]} 10. a3 {[%clk 0:02:38]}  Bd6 {[%clk 0:02:46]} 11. Nxd7 {[%clk 0:02:33]}  Qxd7 {[%clk 0:02:44]} 12. cxd5 {[%clk 0:02:34]}  exd5 {[%clk 0:02:45]} 13. Nc4 {[%clk 0:02:34]}  Be7 {[%clk 0:02:41]} 14. Ne5 {[%clk 0:02:20]}  Qe6 {[%clk 0:02:39]} 15. b4 {[%clk 0:02:20]}  c5 {[%clk 0:02:34]} 16. bxc5 {[%clk 0:02:21]}  bxc5 {[%clk 0:02:35]} 17. Rb1 {[%clk 0:02:19]}  Rab8 {[%clk 0:02:34]} 18. Bf4 {[%clk 0:02:14]}  Bd6 {[%clk 0:02:23]} 19. Nd3 {[%clk 0:02:07]}  cxd4 {[%clk 0:02:20]} 20. Qa4 {[%clk 0:01:50]}  Bxf4 {[%clk 0:01:21]} 21. Nxf4 {[%clk 0:01:51]}  Qd6 {[%clk 0:01:21]} 22. Qxa7 {[%clk 0:01:47]}  Bc6 {[%clk 0:01:17]} 23. Rxb8 {[%clk 0:01:33]}  Rxb8 {[%clk 0:01:15]} 24. Rc1 {[%clk 0:01:32]}  g5 {[%clk 0:00:58]} 25. Nd3 {[%clk 0:01:32]}  Bb5 {[%clk 0:00:50]} 26. Rb1 {[%clk 0:01:19]}  Rb6 {[%clk 0:00:24]} 27. Qa5 {[%clk 0:01:07]}  Qc6 {[%clk 0:00:10]} 28. a4 {[%clk 0:00:55]}  Qc2 {[%clk 0:00:10]} 29. Rxb5 {[%clk 0:00:51]}  Rxb5 {[%clk 0:00:10]} 30. Qxb5 {[%clk 0:00:52]}  Qxe2 {[%clk 0:00:10]} 31. Bf1 {[%clk 0:00:50]}  Qa2 {[%clk 0:00:10]} 32. Qb8+ {[%clk 0:00:48]}  Kg7 {[%clk 0:00:10]} 33. Qe5 {[%clk 0:00:49]}  h6 {[%clk 0:00:08]} 34. Qxd4 {[%clk 0:00:50]} 1-0


[Site "https://www.chess.com"]

[Event "Titled Tuesday Blitz November 07 Early 2023"]
[White "Khismatullin, Denis"]
[Black "Bluebaum, Matthias"]
[WhiteFideId "4142578"]
[BlackFideId "24651516"]
[WhiteElo "2956"]
[BlackElo "3071"]
[Result "0-1"]
[Round "11"]
[TimeControl "180+1"]
[Date "2023.11.07"]
[WhiteClock "0:00:00"]
[BlackClock "0:00:51"]
[Board "5"]

1. c4 {[%clk 0:03:00]}  e6 {[%clk 0:03:00]} 2. Nc3 {[%clk 0:03:00]}  d5 {[%clk 0:03:01]} 3. d4 {[%clk 0:03:00]}  Bb4 {[%clk 0:03:01]} 4. e3 {[%clk 0:02:57]}  Nf6 {[%clk 0:03:01]} 5. a3 {[%clk 0:02:56]}  Bxc3+ {[%clk 0:03:01]} 6. bxc3 {[%clk 0:02:57]}  c6 {[%clk 0:03:02]} 7. Bd3 {[%clk 0:02:53]}  e5 {[%clk 0:03:03]} 8. Ne2 {[%clk 0:02:46]}  e4 {[%clk 0:03:03]} 9. Bb1 {[%clk 0:02:46]}  O-O {[%clk 0:03:03]} 10. O-O {[%clk 0:02:45]}  b6 {[%clk 0:03:04]} 11. cxd5 {[%clk 0:02:43]}  cxd5 {[%clk 0:03:04]} 12. Ng3 {[%clk 0:02:39]}  Ba6 {[%clk 0:03:04]} 13. Re1 {[%clk 0:02:39]}  Nc6 {[%clk 0:03:02]} 14. f3 {[%clk 0:02:38]}  Re8 {[%clk 0:02:51]} 15. Ra2 {[%clk 0:02:36]}  Na5 {[%clk 0:02:48]} 16. Rf2 {[%clk 0:02:33]}  Rc8 {[%clk 0:02:48]} 17. fxe4 {[%clk 0:02:25]}  dxe4 {[%clk 0:02:47]} 18. Nh5 {[%clk 0:01:54]}  Nxh5 {[%clk 0:02:41]} 19. Qxh5 {[%clk 0:01:55]}  g6 {[%clk 0:02:42]} 20. Qh6 {[%clk 0:01:50]}  Qd5 {[%clk 0:02:29]} 21. a4 {[%clk 0:01:33]}  Bd3 {[%clk 0:02:26]} 22. Ba2 {[%clk 0:01:20]}  Bc4 {[%clk 0:02:25]} 23. Bb1 {[%clk 0:01:20]}  Bd3 {[%clk 0:02:23]} 24. Ba2 {[%clk 0:01:19]}  Nc4 {[%clk 0:02:23]} 25. h4 {[%clk 0:01:07]}  Rc6 {[%clk 0:02:11]} 26. Qf4 {[%clk 0:01:02]}  f6 {[%clk 0:02:08]} 27. Ba3 {[%clk 0:00:57]}  Kg7 {[%clk 0:02:06]} 28. g4 {[%clk 0:00:53]}  h6 {[%clk 0:02:04]} 29. Qg3 {[%clk 0:00:46]}  g5 {[%clk 0:02:04]} 30. Rh2 {[%clk 0:00:43]}  Qd8 {[%clk 0:01:44]} 31. Bc1 {[%clk 0:00:34]}  Qc7 {[%clk 0:01:33]} 32. Qxc7+ {[%clk 0:00:30]}  Rxc7 {[%clk 0:01:34]} 33. Kf2 {[%clk 0:00:28]}  Rf8 {[%clk 0:01:28]} 34. Reh1 {[%clk 0:00:27]}  Rc6 {[%clk 0:01:28]} 35. Kg3 {[%clk 0:00:20]}  Rd8 {[%clk 0:01:19]} 36. hxg5 {[%clk 0:00:18]}  fxg5 {[%clk 0:01:19]} 37. Rf2 {[%clk 0:00:18]}  Rf8 {[%clk 0:01:18]} 38. Rxf8 {[%clk 0:00:18]}  Kxf8 {[%clk 0:01:19]} 39. Rh2 {[%clk 0:00:15]}  Rf6 {[%clk 0:01:16]} 40. Rf2 {[%clk 0:00:15]}  Rxf2 {[%clk 0:01:16]} 41. Kxf2 {[%clk 0:00:16]}  a5 {[%clk 0:01:05]} 42. Bb3 {[%clk 0:00:16]}  Ke7 {[%clk 0:01:04]} 43. Kg3 {[%clk 0:00:15]}  Kd7 {[%clk 0:01:04]} 44. Kf2 {[%clk 0:00:15]}  Kc6 {[%clk 0:01:04]} 45. Ke1 {[%clk 0:00:09]}  b5 {[%clk 0:01:00]} 46. axb5+ {[%clk 0:00:09]}  Kxb5 {[%clk 0:01:01]} 47. Ba2 {[%clk 0:00:05]}  a4 {[%clk 0:00:57]} 48. Kf2 {[%clk 0:00:05]}  Bc2 {[%clk 0:00:50]} 49. d5 {[%clk 0:00:05]}  Bd3 {[%clk 0:00:49]} 50. Kg3 {[%clk 0:00:04]}  Kc5 {[%clk 0:00:50]} 51. d6 {[%clk 0:00:03]}  Kxd6 {[%clk 0:00:50]} 52. Kf2 {[%clk 0:00:03]}  Kc5 {[%clk 0:00:50]} 53. Ke1 {[%clk 0:00:03]}  Bc2 {[%clk 0:00:51]} 54. Kf2 {[%clk 0:00:03]}  Kd5 {[%clk 0:00:50]} 55. Kg3 {[%clk 0:00:02]}  Bb3 {[%clk 0:00:51]} 56. Bb1 {[%clk 0:00:00]}  a3 {[%clk 0:00:51]} 0-1


[Site "https://www.chess.com"]

[Event "Titled Tuesday Blitz November 07 Early 2023"]
[White "Ibarra Jerez, Jose Carlos"]
[Black "Sethuraman, S.P."]
[WhiteFideId "2226332"]
[BlackFideId "5021596"]
[WhiteElo "2998"]
[BlackElo "2926"]
[Result "1-0"]
[Round "11"]
[TimeControl "180+1"]
[Date "2023.11.07"]
[WhiteClock "0:00:04"]
[BlackClock "0:00:00"]
[Board "6"]

1. e4 {[%clk 0:03:00]}  e5 {[%clk 0:02:59]} 2. Nf3 {[%clk 0:03:01]}  Nc6 {[%clk 0:03:00]} 3. Nc3 {[%clk 0:03:01]}  Nf6 {[%clk 0:02:59]} 4. h3 {[%clk 0:03:02]}  d5 {[%clk 0:02:57]} 5. exd5 {[%clk 0:03:02]}  Nxd5 {[%clk 0:02:57]} 6. Bb5 {[%clk 0:03:02]}  Nxc3 {[%clk 0:02:57]} 7. bxc3 {[%clk 0:03:03]}  Bd6 {[%clk 0:02:57]} 8. O-O {[%clk 0:03:03]}  O-O {[%clk 0:02:57]} 9. d4 {[%clk 0:03:03]}  exd4 {[%clk 0:02:57]} 10. cxd4 {[%clk 0:03:04]}  Bf5 {[%clk 0:02:53]} 11. Bg5 {[%clk 0:03:03]}  Qc8 {[%clk 0:02:49]} 12. Re1 {[%clk 0:02:59]}  Nb4 {[%clk 0:02:41]} 13. Be7 {[%clk 0:02:57]}  Nxc2 {[%clk 0:02:25]} 14. Bxf8 {[%clk 0:02:20]}  Qxf8 {[%clk 0:02:22]} 15. Nh4 {[%clk 0:02:12]}  Nxe1 {[%clk 0:02:02]} 16. Nxf5 {[%clk 0:02:11]}  Bb4 {[%clk 0:01:54]} 17. Rb1 {[%clk 0:01:42]}  c6 {[%clk 0:01:49]} 18. Bf1 {[%clk 0:01:32]}  Re8 {[%clk 0:01:42]} 19. a3 {[%clk 0:01:13]}  Bxa3 {[%clk 0:01:22]} 20. Rxb7 {[%clk 0:01:13]}  g6 {[%clk 0:00:56]} 21. Bc4 {[%clk 0:01:07]}  gxf5 {[%clk 0:00:39]} 22. Bxf7+ {[%clk 0:01:06]}  Kh8 {[%clk 0:00:36]} 23. Bxe8 {[%clk 0:01:04]}  Qxe8 {[%clk 0:00:37]} 24. Rb1 {[%clk 0:00:37]}  Nxg2 {[%clk 0:00:37]} 25. Kxg2 {[%clk 0:00:36]}  Qe4+ {[%clk 0:00:36]} 26. Kg1 {[%clk 0:00:36]}  Bd6 {[%clk 0:00:35]} 27. Rb7 {[%clk 0:00:30]}  c5 {[%clk 0:00:24]} 28. Rd7 {[%clk 0:00:21]}  Qf4 {[%clk 0:00:22]} 29. Qd3 {[%clk 0:00:04]}  Qc1+ {[%clk 0:00:13]} 30. Kg2 {[%clk 0:00:04]}  Qg5+ {[%clk 0:00:13]} 31. Kf1 {[%clk 0:00:03]}  Qc1+ {[%clk 0:00:12]} 32. Ke2 {[%clk 0:00:04]}  Qb2+ {[%clk 0:00:07]} 33. Kf3 {[%clk 0:00:04]}  Qb8 {[%clk 0:00:01]} 34. Qxf5 {[%clk 0:00:04]}  Qa8+ {[%clk 0:00:00]} 35. d5 {[%clk 0:00:04]} 1-0


[Site "https://www.chess.com"]

[Event "Titled Tuesday Blitz November 07 Early 2023"]
[White "Melkumyan, Hrant"]
[Black "Le, Tuan Minh"]
[WhiteFideId "13302485"]
[BlackFideId "12401153"]
[WhiteElo "2920"]
[BlackElo "3064"]
[Result "0-1"]
[Round "11"]
[TimeControl "180+1"]
[Date "2023.11.07"]
[WhiteClock "0:00:15"]
[BlackClock "0:01:16"]
[Board "8"]

1. d4 {[%clk 0:03:00]}  d5 {[%clk 0:02:59]} 2. c4 {[%clk 0:03:01]}  c6 {[%clk 0:03:00]} 3. Nf3 {[%clk 0:02:59]}  Nf6 {[%clk 0:03:00]} 4. g3 {[%clk 0:02:59]}  g6 {[%clk 0:02:59]} 5. cxd5 {[%clk 0:02:57]}  cxd5 {[%clk 0:02:59]} 6. Nc3 {[%clk 0:02:57]}  Nc6 {[%clk 0:02:59]} 7. Ne5 {[%clk 0:02:55]}  Bg7 {[%clk 0:02:57]} 8. Bg2 {[%clk 0:02:55]}  O-O {[%clk 0:02:56]} 9. Nxc6 {[%clk 0:02:55]}  bxc6 {[%clk 0:02:56]} 10. O-O {[%clk 0:02:56]}  Nd7 {[%clk 0:02:56]} 11. b3 {[%clk 0:02:53]}  Ba6 {[%clk 0:02:45]} 12. Ba3 {[%clk 0:02:50]}  Qa5 {[%clk 0:02:38]} 13. Bb2 {[%clk 0:02:37]}  e6 {[%clk 0:02:07]} 14. Re1 {[%clk 0:02:23]}  c5 {[%clk 0:02:05]} 15. dxc5 {[%clk 0:02:09]}  Bxc3 {[%clk 0:02:01]} 16. Bxc3 {[%clk 0:02:05]}  Qxc3 {[%clk 0:02:01]} 17. Rc1 {[%clk 0:02:06]}  Qb4 {[%clk 0:01:55]} 18. c6 {[%clk 0:01:46]}  Ne5 {[%clk 0:01:51]} 19. Qc2 {[%clk 0:01:05]}  Rac8 {[%clk 0:01:49]} 20. c7 {[%clk 0:01:05]}  Rfe8 {[%clk 0:01:28]} 21. Qb2 {[%clk 0:00:53]}  Qd6 {[%clk 0:01:27]} 22. Qc3 {[%clk 0:00:38]}  Re7 {[%clk 0:01:25]} 23. Qa5 {[%clk 0:00:37]}  Rexc7 {[%clk 0:01:24]} 24. Rxc7 {[%clk 0:00:37]}  Rxc7 {[%clk 0:01:25]} 25. h3 {[%clk 0:00:34]}  Rc2 {[%clk 0:01:22]} 26. f4 {[%clk 0:00:28]}  Nd7 {[%clk 0:01:20]} 27. e4 {[%clk 0:00:21]}  Qb6+ {[%clk 0:01:16]} 28. Qxb6 {[%clk 0:00:21]}  Nxb6 {[%clk 0:01:17]} 29. exd5 {[%clk 0:00:22]}  Nxd5 {[%clk 0:01:17]} 30. a3 {[%clk 0:00:15]}  Rc3 {[%clk 0:01:16]} 0-1


[Site "https://www.chess.com"]

[Event "Titled Tuesday Blitz November 07 Early 2023"]
[White "Steinberg, Nitzan"]
[Black "Tsydypov, Zhamsaran"]
[WhiteFideId "2801795"]
[BlackFideId "4108566"]
[WhiteElo "2896"]
[BlackElo "3011"]
[Result "0-1"]
[Round "11"]
[TimeControl "180+1"]
[Date "2023.11.07"]
[WhiteClock "0:00:20"]
[BlackClock "0:01:10"]
[Board "9"]

1. e4 {[%clk 0:03:00]}  c6 {[%clk 0:02:57]} 2. Nf3 {[%clk 0:03:01]}  d5 {[%clk 0:02:58]} 3. exd5 {[%clk 0:03:01]}  cxd5 {[%clk 0:02:58]} 4. Ne5 {[%clk 0:03:01]}  Nf6 {[%clk 0:02:56]} 5. d4 {[%clk 0:03:01]}  a6 {[%clk 0:02:55]} 6. c3 {[%clk 0:03:01]}  g6 {[%clk 0:02:53]} 7. Be2 {[%clk 0:02:53]}  Bg7 {[%clk 0:02:54]} 8. O-O {[%clk 0:02:54]}  O-O {[%clk 0:02:54]} 9. Nd2 {[%clk 0:02:53]}  Nfd7 {[%clk 0:02:52]} 10. Nd3 {[%clk 0:02:44]}  Nc6 {[%clk 0:02:52]} 11. Nf3 {[%clk 0:02:43]}  b6 {[%clk 0:02:46]} 12. Re1 {[%clk 0:02:37]}  Bb7 {[%clk 0:02:46]} 13. h4 {[%clk 0:02:37]}  f6 {[%clk 0:02:45]} 14. Nf4 {[%clk 0:02:36]}  Qc8 {[%clk 0:02:24]} 15. Nxd5 {[%clk 0:02:27]}  Kh8 {[%clk 0:02:24]} 16. h5 {[%clk 0:02:24]}  gxh5 {[%clk 0:02:23]} 17. Nf4 {[%clk 0:02:22]}  e5 {[%clk 0:02:23]} 18. Ne6 {[%clk 0:02:20]}  Rg8 {[%clk 0:02:20]} 19. Nh4 {[%clk 0:02:16]}  Nf8 {[%clk 0:02:11]} 20. Nxf8 {[%clk 0:02:07]}  Bxf8 {[%clk 0:02:11]} 21. d5 {[%clk 0:02:02]}  Ne7 {[%clk 0:02:11]} 22. c4 {[%clk 0:02:02]}  Qh3 {[%clk 0:02:09]} 23. Bxh5 {[%clk 0:01:28]}  Qxh4 {[%clk 0:02:08]} 24. Bf3 {[%clk 0:01:27]}  Qxc4 {[%clk 0:01:59]} 25. d6 {[%clk 0:01:25]}  Nd5 {[%clk 0:01:46]} 26. Re4 {[%clk 0:01:09]}  Qc5 {[%clk 0:01:47]} 27. Rh4 {[%clk 0:01:08]}  f5 {[%clk 0:01:39]} 28. b4 {[%clk 0:01:04]}  Qxd6 {[%clk 0:01:37]} 29. Bb2 {[%clk 0:01:01]}  Rd8 {[%clk 0:01:20]} 30. Bh5 {[%clk 0:00:32]}  Rxg2+ {[%clk 0:01:14]} 31. Kf1 {[%clk 0:00:25]}  Ne3+ {[%clk 0:01:11]} 32. fxe3 {[%clk 0:00:25]}  Qxd1+ {[%clk 0:01:10]} 33. Rxd1 {[%clk 0:00:21]}  Rxd1+ {[%clk 0:01:09]} 34. Bxd1 {[%clk 0:00:20]}  Rxb2 {[%clk 0:01:10]} 0-1


[Site "https://www.chess.com"]

[Event "Titled Tuesday Blitz November 07 Early 2023"]
[White "Kislinsky, Alexey"]
[Black "Orozbaev, Eldiar"]
[WhiteFideId "14108801"]
[BlackFideId "13802240"]
[WhiteElo "2684"]
[BlackElo "2773"]
[Result "0-1"]
[Round "11"]
[TimeControl "180+1"]
[Date "2023.11.07"]
[WhiteClock "0:01:30"]
[BlackClock "0:01:46"]
[Board "13"]

1. e4 {[%clk 0:03:00]}  e6 {[%clk 0:03:00]} 2. d4 {[%clk 0:03:00]}  d5 {[%clk 0:03:00]} 3. e5 {[%clk 0:03:01]}  c5 {[%clk 0:03:00]} 4. c3 {[%clk 0:03:01]}  Nc6 {[%clk 0:03:01]} 5. Nf3 {[%clk 0:03:02]}  Qb6 {[%clk 0:03:02]} 6. Be2 {[%clk 0:03:01]}  f6 {[%clk 0:03:00]} 7. O-O {[%clk 0:03:00]}  fxe5 {[%clk 0:02:59]} 8. Nxe5 {[%clk 0:03:00]}  Nf6 {[%clk 0:02:59]} 9. Bh5+ {[%clk 0:02:56]}  g6 {[%clk 0:02:55]} 10. Be2 {[%clk 0:02:47]}  Bg7 {[%clk 0:02:55]} 11. Nxc6 {[%clk 0:02:29]}  bxc6 {[%clk 0:02:53]} 12. dxc5 {[%clk 0:02:30]}  Qxc5 {[%clk 0:02:54]} 13. Be3 {[%clk 0:02:30]}  Qd6 {[%clk 0:02:53]} 14. Nd2 {[%clk 0:02:23]}  O-O {[%clk 0:02:53]} 15. f4 {[%clk 0:02:16]}  Qc7 {[%clk 0:02:37]} 16. Bd4 {[%clk 0:02:14]}  Bd7 {[%clk 0:02:26]} 17. Nb3 {[%clk 0:02:13]}  Ne4 {[%clk 0:02:22]} 18. g3 {[%clk 0:02:06]}  e5 {[%clk 0:02:19]} 19. fxe5 {[%clk 0:02:04]}  Bxe5 {[%clk 0:02:20]} 20. Bf3 {[%clk 0:02:02]}  Bh3 {[%clk 0:02:10]} 21. Bg2 {[%clk 0:01:58]}  Bxg2 {[%clk 0:02:09]} 22. Kxg2 {[%clk 0:01:57]}  Rxf1 {[%clk 0:02:01]} 23. Kxf1 {[%clk 0:01:54]}  Rf8+ {[%clk 0:01:59]} 24. Kg1 {[%clk 0:01:54]}  Bxg3 {[%clk 0:01:47]} 25. Qe2 {[%clk 0:01:45]}  Bf2+ {[%clk 0:01:46]} 26. Kh1 {[%clk 0:01:30]}  Bxd4 {[%clk 0:01:46]} 0-1


[Site "https://www.chess.com"]